fUST/lending_fUST_20240812
["ID","MTS","AMOUNT","RATE_DAILY","PERIOD"]
[334683302,1723469370704,-156.87111249,0.00017019,2]
[334683303,1723469370726,-601.42805892,0.00017019,2]
[334683304,1723469370748,-195.5269004,0.00017019,2]
[334683305,1723469370772,-154.76012181,0.00017019,2]
[334683306,1723469370794,-5439.20086107,0.00017084,2]
[334683307,1723469370816,-420.0,0.0001717,2]
[334683308,1723469370838,-495.15503698,0.00017269,2]
[334683313,1723469384781,199.38818849,0.00014247,2]
[334683314,1723469384823,310.61332568,0.00014247,2]
[334683367,1723469432830,-302.0,0.00016347,2]
[334683368,1723469432843,-241.53411254,0.00016347,2]
[334683369,1723469432854,-153.0,0.00016438,2]
[334683370,1723469432865,-153.0,0.00016438,2]
[334683371,1723469432874,-153.0,0.00016438,2]
[334683372,1723469432889,-154.74467129,0.00017019,2]
[334683373,1723469432899,-159.38116829,0.00017019,2]
[334683374,1723469432908,-154.74467129,0.00017019,2]
[334683375,1723469432918,-1651.70540156,0.00017019,2]
[334683376,1723469432928,-177.28386842,0.00017019,2]
[334683377,1723469432941,-154.79678224,0.00017019,2]
[334683378,1723469432952,-3807.70428226,0.00017019,2]
[334683379,1723469432963,-154.76012181,0.00017019,2]
[334683380,1723469432973,-819.24484582,0.00017019,2]
[334683381,1723469432986,-862.13063776,0.00017019,2]
[334683421,1723469440624,-53753.22211123,0.00017019,2]
[334683422,1723469440634,-535.1745485,0.00017019,2]
[334683423,1723469440646,-300.0,0.00017268,2]
[334683424,1723469440656,-194.74416001,0.00017269,2]
[334683425,1723469440666,-182.2907837,0.00017269,2]
[334683426,1723469440676,-953.7890749,0.00017269,2]
[334683427,1723469440686,-913.41210079,0.00017269,2]
[334683428,1723469440695,-160.32383333,0.00017379,2]
[334683429,1723469440705,-2126.37973248,0.00017379,2]
[334683430,1723469440715,-154.74467129,0.00017379,2]
[334683431,1723469440724,-154.76012181,0.00017379,2]
[334683432,1723469440735,-2710.33053727,0.00017379,2]
[334683433,1723469440745,-154.76012181,0.00017379,2]
[334683434,1723469440757,-201.64749152,0.00017403,2]
[334683435,1723469440767,-5627.13785662,0.00017403,2]
[334683436,1723469440777,-210.07711325,0.00017403,2]
[334683437,1723469440788,-150.112233,0.000176,2]
[334683438,1723469440799,-1261.96787252,0.000176,2]
[334683439,1723469440808,-250.53341872,0.0001763,2]
[334683440,1723469440818,-500.0,0.00017999,2]
[334683441,1723469440828,-500.0,0.00017999,2]
[334683442,1723469440837,-321.22458905,0.00017999,2]
[334683443,1723469440847,-500.0,0.00017999,2]
[334683444,1723469440856,-519.98119741,0.00017999,2]
[334683445,1723469440865,-472.28479668,0.00018,2]
[334683446,1723469440875,-5240.178669,0.00018,2]
[334683447,1723469440890,-500.0,0.00018357,2]
[334683448,1723469440900,-150.112233,0.000184,2]
[334683449,1723469440909,-5439.20086107,0.00018558,2]
[334683450,1723469440920,-154.74467129,0.00018786,2]
[334683451,1723469440930,-327.575481,0.00018904,2]
[334683452,1723469440939,-420.0,0.00018995,2]
[334683453,1723469440949,-522.8794631,0.00019046,2]
[334683454,1723469440959,-154.74467129,0.00019102,2]
[334683455,1723469440968,-154.74467129,0.00019102,2]
[334683456,1723469440977,-494.73852133,0.00019139,2]
[334683457,1723469440986,-301.29579535,0.00019139,2]
[334683458,1723469440997,-157.9723884,0.00019153,2]
[334683459,1723469441007,-240.56996624,0.00019178,2]
[334683460,1723469441016,-165.628358,0.00019178,2]
[334683461,1723469441025,-162.41795,0.00019178,2]
[334683462,1723469441036,-250.0,0.00019178,2]
[334683463,1723469441045,-150.112233,0.000192,2]
[334683464,1723469441055,-500.0,0.00019323,2]
[334683465,1723469441064,-1000.0,0.00019452,2]
[334683466,1723469441074,-1000.0,0.00019479,2]
[334683467,1723469441083,-1000.0,0.00019506,2]
[334683468,1723469441093,-356.793665,0.0001951,2]
[334683469,1723469441102,-164.789859,0.0001951,2]
[334683470,1723469441111,-1219.047521,0.0001951,2]
[334683471,1723469441121,-1070.380996,0.0001951,2]
[334683472,1723469441129,-174.298998,0.0001951,2]
[334683473,1723469441141,-174.268579,0.0001951,2]
[334683474,1723469441150,-1000.0,0.00019534,2]
[334683475,1723469441159,-1000.0,0.00019561,2]
[334683476,1723469441169,-1000.0,0.00019589,2]
[334683477,1723469441178,-1000.0,0.00019616,2]
[334683478,1723469441187,-1000.0,0.00019643,2]
[334683479,1723469441197,-1000.0,0.00019671,2]
[334683480,1723469441206,-1000.0,0.00019698,2]
[334683481,1723469441215,-1000.0,0.00019726,2]
[334683482,1723469441224,-267.9524887,0.00019726,2]
[334683483,1723469441234,-267.9524887,0.00019726,2]
[334683484,1723469441243,-267.9524887,0.00019726,2]
[334683485,1723469441252,-1104.50102556,0.00019753,2]
[334683486,1723469441261,-356.793665,0.00019754,2]
[334683487,1723469441270,-1219.047521,0.00019754,2]
[334683488,1723469441279,-1070.380996,0.00019754,2]
[334683489,1723469441289,-174.268579,0.00019754,2]
[334683490,1723469441298,-2127.54848259,0.0001979,2]
[334683491,1723469441307,-216.61872736,0.00019799,2]
[334683492,1723469441317,-500.0,0.00019799,2]
[334683493,1723469441326,-500.0,0.00019799,2]
[334683494,1723469441335,-500.0,0.00019799,2]
[334683495,1723469441345,-500.0,0.00019799,2]
[334683496,1723469441354,-500.0,0.00019799,2]
[334683497,1723469441363,-500.0,0.00019799,2]
[334683498,1723469441372,-500.0,0.00019799,2]
[334683499,1723469441382,-500.0,0.00019799,2]
[334683500,1723469441393,-500.0,0.00019799,2]
[334683501,1723469441402,-615.07443331,0.00019799,2]
[334683502,1723469441411,-500.0,0.00019799,2]
[334683503,1723469441421,-500.0,0.00019799,2]
[334683504,1723469441430,-53111.52254119,0.000198,2]
[334683505,1723469441439,-338.398796,0.000198,2]
[334683506,1723469441448,-338.398796,0.000198,2]
[334683507,1723469441457,-151.0,0.000198,2]
[334683508,1723469441466,-589.532529,0.000198,2]
[334683509,1723469441475,-589.532529,0.000198,2]
[334683510,1723469441484,-395.118309,0.000198,2]
[334683511,1723469441493,-395.118309,0.000198,2]
[334683512,1723469441502,-151.0,0.000198,2]
[334683513,1723469441512,-314.555463,0.000198,2]
[334683514,1723469441521,-314.555463,0.000198,2]
[334683515,1723469441531,-151.90208824,0.00019822,2]
[334683516,1723469441540,-1375.68208424,0.00019841,2]
[334683517,1723469441549,-44058.42732194,0.0001989,11]
[334683518,1723469441558,-2128.47183867,0.0001989,2]
[334683519,1723469441568,-88888.0,0.0001989,2]
[334683520,1723469441577,-150.112233,0.000199,2]
[334683521,1723469441586,-33145.12,0.000199,2]
[334683522,1723469441595,-13085.75701967,0.0001999,2]
[334683523,1723469441605,-356.793665,0.00019997,2]
[334683524,1723469441614,-1219.047521,0.00019997,2]
[334683525,1723469441624,-1070.380996,0.00019997,2]
[334683526,1723469441633,-174.268579,0.00019997,2]
[334683527,1723469441646,-5576.7016452,0.0002,2]
[334683528,1723469441655,-153.0,0.0002,2]
[334683529,1723469441665,-159.10261843,0.0002,2]
[334683530,1723469441674,-435.0,0.0002,2]
[334683531,1723469441683,-171.57583552,0.0002,2]
[334683532,1723469441692,-285.2524132,0.0002,2]
[334683533,1723469441702,-174.49131898,0.0002,2]
[334683534,1723469441711,-1393.14395153,0.0002,2]
[334683535,1723469441720,-175.01257602,0.0002,2]
[334683536,1723469441730,-154.74467129,0.0002,2]
[334683537,1723469441739,-294.33166663,0.0002,2]
[334683538,1723469441749,-154.76012181,0.0002,2]
[334683539,1723469441759,-154.76012181,0.0002,2]
[334683540,1723469441768,-500.0,0.0002,2]
[334683541,1723469441778,-154.77557542,0.0002,2]
[334683542,1723469441787,-11390.23996624,0.0002,2]
[334683543,1723469441797,-5322.29976103,0.0002,2]
[334683544,1723469441806,-34082.63590581,0.0002,2]
[334683545,1723469441816,-2295.12425473,0.0002,14]
[334683546,1723469441825,-336.53868747,0.0002,2]
[334683547,1723469441835,-188.20114955,0.0002,2]
[334683548,1723469441844,-156.4788062,0.0002,2]
[334683549,1723469441854,-21819.05330997,0.0002,2]
[334683550,1723469441864,-306.0,0.0002,2]
[334683551,1723469441874,-150.112233,0.0002,5]
[334683552,1723469441891,-151.4401548,0.0002,2]
[334683553,1723469441904,-1856.76379079,0.0002,2]
[334683554,1723469441913,-151.0,0.0002,2]
[334683555,1723469441922,-151.0,0.0002,2]
[334683556,1723469441934,-1244.984602,0.0002,2]
[334683557,1723469441943,-1244.984602,0.0002,2]
[334683558,1723469441952,-151.0,0.0002,2]
[334683559,1723469441963,-338.398796,0.0002,2]
[334683560,1723469441972,-338.398796,0.0002,2]
[334683561,1723469441981,-589.532529,0.0002,2]
[334683562,1723469441991,-589.532529,0.0002,2]
[334683563,1723469442000,-395.118309,0.0002,2]
[334683564,1723469442010,-395.118309,0.0002,2]
[334683565,1723469442019,-171.272307,0.0002,2]
[334683566,1723469442030,-314.555463,0.0002,2]
[334683567,1723469442039,-314.555463,0.0002,2]
[334683568,1723469442049,-5439.20086107,0.00020032,2]
[334683569,1723469442058,-356.793665,0.00020241,2]
[334683570,1723469442068,-1219.047521,0.00020241,2]
[334683571,1723469442078,-1070.380996,0.00020241,2]
[334683572,1723469442087,-174.268579,0.00020241,2]
[334683573,1723469442098,-420.9344986,0.00020274,2]
[334683574,1723469442107,-153.0,0.00020274,2]
[334683575,1723469442117,-153.0,0.00020274,2]
[334683576,1723469442126,-153.0,0.00020274,2]
[334683577,1723469442135,-153.0,0.00020274,2]
[334683578,1723469442149,-153.0,0.00020274,2]
[334683579,1723469442158,-153.0,0.00020274,2]
[334683580,1723469442167,-153.0,0.00020274,2]
[334683581,1723469442176,-153.0,0.00020274,2]
[334683582,1723469442185,-153.0,0.00020274,2]
[334683583,1723469442195,-153.0,0.00020274,2]
[334683584,1723469442204,-500.0,0.0002034,2]
[334683585,1723469442213,-1009.70433,0.000204,2]
[334683586,1723469442223,-600.0,0.00020458,2]
[334683587,1723469442233,-356.793665,0.00020485,2]
[334683588,1723469442243,-1070.380996,0.00020485,2]
[334683589,1723469442252,-1219.047521,0.00020485,2]
[334683590,1723469442261,-174.268579,0.00020485,2]
[334683591,1723469442271,-150.112233,0.000205,3]
[334683592,1723469442280,-1000.0,0.00020507,2]
[334683593,1723469442290,-248.98557296,0.00020547,7]
[334683594,1723469442299,-153.0,0.00020548,2]
[334683595,1723469442309,-153.0,0.00020548,2]
[334683596,1723469442319,-153.0,0.00020548,2]
[334683597,1723469442330,-64780.52006818,0.00020667,2]
[334683598,1723469442339,-151.0,0.00020667,2]
[334683599,1723469442349,-151.0,0.00020667,2]
[334683600,1723469442359,-151.0,0.00020667,2]
[334683601,1723469442368,-151.0,0.00020667,2]
[334683602,1723469442378,-151.0,0.00020667,2]
[334683603,1723469442391,-151.0,0.00020667,2]
[334683604,1723469442400,-151.0,0.00020667,2]
[334683605,1723469442413,-706.021002,0.00020667,2]
[334683606,1723469442423,-151.0,0.00020667,2]
[334683607,1723469442433,-706.021002,0.00020667,2]
[334683608,1723469442444,-151.0,0.00020667,2]
[334683609,1723469442454,-151.0,0.00020667,2]
[334683610,1723469442463,-264.289944,0.00020667,2]
[334683611,1723469442473,-264.289944,0.00020667,2]
[334683612,1723469442482,-600.0,0.00020671,2]
[334683613,1723469442492,-588.710544,0.000207,9]
[334683614,1723469442501,-640.452,0.00020715,2]
[334683615,1723469442511,-1413.0,0.00020715,2]
[334683616,1723469442520,-790.96254212,0.00020728,2]
[334683617,1723469442530,-330.41705406,0.00020728,2]
[334683618,1723469442540,-1003.18673817,0.00020735,2]
[334683619,1723469442550,-719.46628737,0.00020788,2]
[334683620,1723469442559,-500.0,0.00020821,3]
[334683621,1723469442569,-500.0,0.00020821,3]
[334683622,1723469442580,-529.41,0.00020821,3]
[334683623,1723469442590,-500.0,0.00020821,3]
[334683624,1723469442600,-500.0,0.00020821,3]
[334683625,1723469442611,-500.0,0.00020821,3]
[334683626,1723469442621,-151.0,0.00020821,2]
[334683627,1723469442632,-500.0,0.00020821,3]
[334683628,1723469442647,-500.0,0.00020821,3]
[334683629,1723469442656,-503.32399465,0.00020821,3]
[334683630,1723469442666,-593.5,0.00020821,3]
[334683631,1723469442676,-500.0,0.00020821,3]
[334683632,1723469442685,-500.0,0.00020821,3]
[334683633,1723469442695,-638.51270259,0.00020821,3]
[334683634,1723469442704,-500.0,0.00020821,3]
[334683635,1723469442714,-500.0,0.00020821,3]
[334683636,1723469442723,-200.0,0.00020821,3]
[334683637,1723469442732,-551.48,0.00020821,3]
[334683638,1723469442741,-668.11,0.00020821,3]
[334683639,1723469442751,-573.85377433,0.00020821,3]
[334683640,1723469442760,-151.0,0.00020821,2]
[334683641,1723469442770,-151.0,0.00020821,2]
[334683642,1723469442779,-500.0,0.00020821,3]
[334683643,1723469442789,-500.0,0.00020821,3]
[334683644,1723469442798,-500.0,0.00020821,3]
[334683645,1723469442808,-502.21590744,0.00020821,3]
[334683646,1723469442818,-500.0,0.00020821,3]
[334683647,1723469442827,-632.05,0.00020821,3]
[334683648,1723469442836,-844.16,0.00020821,3]
[334683649,1723469442846,-517.57,0.00020821,3]
[334683650,1723469442856,-862.33,0.00020821,3]
[334683651,1723469442866,-500.0,0.00020821,3]
[334683652,1723469442877,-500.0,0.00020821,3]
[334683653,1723469442895,-545.7691022,0.00020821,3]
[334683654,1723469442906,-503.20593666,0.00020821,3]
[334683655,1723469442916,-500.0,0.00020821,3]
[334683656,1723469442927,-500.0,0.00020821,3]
[334683657,1723469442937,-500.0,0.00020821,3]
[334683658,1723469442946,-500.0,0.00020821,3]
[334683659,1723469442955,-500.0,0.00020821,3]
[334683661,1723469442965,-500.0,0.00020821,3]
[334683662,1723469442975,-506.28635247,0.00020821,3]
[334683663,1723469442984,-500.0,0.00020821,3]
[334683664,1723469442992,-500.0,0.00020821,3]
[334683665,1723469443002,-500.0,0.00020821,3]
[334683666,1723469443011,-500.0,0.00020821,3]
[334683667,1723469443020,-500.0,0.00020821,3]
[334683668,1723469443029,-677.54,0.00020821,3]
[334683669,1723469443039,-500.0,0.00020821,3]
[334683670,1723469443048,-500.0,0.00020821,3]
[334683671,1723469443058,-230.78518534,0.00020821,3]
[334683672,1723469443068,-500.0,0.00020821,3]
[334683673,1723469443078,-500.0,0.00020821,3]
[334683674,1723469443087,-500.0,0.00020821,3]
[334683675,1723469443096,-151.0,0.00020821,2]
[334683676,1723469443106,-151.0,0.00020821,2]
[334683677,1723469443116,-167.796544,0.00020821,2]
[334683678,1723469443126,-500.0,0.00020821,3]
[334683679,1723469443137,-505.81028186,0.00020821,3]
[334683680,1723469443147,-500.0,0.00020821,3]
[334683681,1723469443156,-500.0,0.00020821,3]
[334683682,1723469443166,-528.49685715,0.00020821,3]
[334683683,1723469443176,-500.0,0.00020821,3]
[334683685,1723469443185,-500.18536811,0.00020821,2]
[334683686,1723469443194,-500.0,0.00020821,3]
[334683687,1723469443203,-1210.07,0.00020821,3]
[334683688,1723469443213,-500.0,0.00020821,3]
[334683689,1723469443222,-500.0,0.00020821,3]
[334683690,1723469443231,-500.0,0.00020821,3]
[334683691,1723469443241,-503.10663543,0.00020821,3]
[334683692,1723469443250,-500.0,0.00020821,3]
[334683693,1723469443259,-503.23853271,0.00020821,3]
[334683694,1723469443269,-500.0,0.00020821,3]
[334683696,1723469443278,-500.0,0.00020821,3]
[334683698,1723469443287,-500.0,0.00020821,3]
[334683699,1723469443297,-500.0,0.00020821,3]
[334683700,1723469443307,-505.58590369,0.00020821,3]
[334683701,1723469443317,-504.51658871,0.00020821,3]
[334683702,1723469443327,-508.29904835,0.00020821,3]
[334683703,1723469443337,-225.25171686,0.00020821,3]
[334683704,1723469443346,-505.06170648,0.00020821,3]
[334683705,1723469443355,-744.34,0.00020821,3]
[334683706,1723469443364,-500.0,0.00020821,3]
[334683707,1723469443374,-509.21040246,0.00020821,3]
[334683708,1723469443385,-500.0,0.00020821,3]
[334683709,1723469443397,-509.51777587,0.00020821,3]
[334683710,1723469443406,-500.0,0.00020821,3]
[334683711,1723469443415,-500.0,0.00020821,3]
[334683712,1723469443425,-500.0,0.00020821,3]
[334683713,1723469443434,-505.0,0.00020821,3]
[334683714,1723469443443,-501.14172296,0.00020821,3]
[334683715,1723469443453,-500.0,0.00020821,3]
[334683718,1723469443569,-500.0,0.00020821,3]
[334683721,1723469443597,-500.0,0.00020821,3]
[334683723,1723469443606,-908.63,0.00020821,3]
[334683725,1723469443615,-500.0,0.00020821,3]
[334683727,1723469443625,-505.64252159,0.00020821,3]
[334683729,1723469443634,-500.0,0.00020821,3]
[334683731,1723469443646,-500.0,0.00020821,3]
[334683733,1723469443655,-500.0,0.00020821,3]
[334683735,1723469443664,-500.0,0.00020821,3]
[334683737,1723469443674,-500.0,0.00020821,3]
[334683739,1723469443683,-500.0,0.00020821,3]
[334683740,1723469443692,-512.17168616,0.00020821,3]
[334683742,1723469443701,-204.43492489,0.00020821,3]
[334683743,1723469443710,-500.0,0.00020821,3]
[334683744,1723469443719,-500.0,0.00020821,3]
[334683745,1723469443729,-282.70644405,0.00020821,3]
[334683746,1723469443739,-2774.04,0.00020821,3]
[334683747,1723469443748,-500.0,0.00020821,3]
[334683748,1723469443758,-509.53757874,0.00020821,3]
[334683749,1723469443767,-568.52,0.00020821,3]
[334683750,1723469443777,-509.72787759,0.00020821,3]
[334683751,1723469443786,-507.77632743,0.00020821,3]
[334683752,1723469443796,-151.0,0.00020821,2]
[334683753,1723469443805,-279.59967043,0.00020821,3]
[334683754,1723469443815,-151.0,0.00020821,2]
[334683755,1723469443824,-151.0,0.00020821,2]
[334683756,1723469443834,-502.30956681,0.00020821,3]
[334683757,1723469443844,-151.0,0.00020821,2]
[334683758,1723469443854,-151.0,0.00020821,2]
[334683759,1723469443864,-500.0,0.00020821,3]
[334683760,1723469443873,-500.43605839,0.00020821,3]
[334683761,1723469443886,-500.0,0.00020821,3]
[334683762,1723469443898,-500.0,0.00020821,3]
[334683763,1723469443908,-512.50635264,0.00020821,3]
[334683764,1723469443917,-500.0,0.00020821,3]
[334683765,1723469443926,-505.37416633,0.00020821,3]
[334683766,1723469443936,-502.41031601,0.00020821,3]
[334683767,1723469443946,-500.0,0.00020821,3]
[334683768,1723469443956,-513.37383625,0.00020821,3]
[334683769,1723469443966,-500.0,0.00020821,3]
[334683770,1723469443975,-500.0,0.00020821,3]
[334683771,1723469443986,-500.0,0.00020821,3]
[334683772,1723469443996,-503.16228762,0.00020821,3]
[334683773,1723469444007,-500.0,0.00020821,3]
[334683774,1723469444017,-506.51584812,0.00020821,3]
[334683775,1723469444027,-500.0,0.00020821,3]
[334683776,1723469444036,-390.04555,0.00020821,2]
[334683777,1723469444046,-390.04555,0.00020821,2]
[334683778,1723469444056,-500.0,0.00020821,3]
[334683779,1723469444065,-390.04555,0.00020821,2]
[334683780,1723469444075,-500.0,0.00020821,3]
[334683781,1723469444084,-390.04555,0.00020821,2]
[334683782,1723469444093,-390.04555,0.00020821,2]
[334683783,1723469444102,-1030.4,0.00020821,3]
[334683784,1723469444112,-390.04555,0.00020821,2]
[334683785,1723469444122,-817.35,0.00020821,3]
[334683786,1723469444131,-507.50428328,0.00020821,3]
[334683787,1723469444143,-500.0,0.00020821,3]
[334683788,1723469444153,-500.0,0.00020821,3]
[334683789,1723469444162,-520.78045696,0.00020821,3]
[334683791,1723469444171,-500.0,0.00020821,3]
[334683793,1723469444181,-500.0,0.00020821,3]
[334683795,1723469444191,-151.0,0.00020821,2]
[334683797,1723469444200,-151.779904,0.00020821,2]
[334683798,1723469444210,-500.0,0.00020821,3]
[334683800,1723469444219,-990.53,0.00020821,3]
[334683801,1723469444228,-500.0,0.00020821,3]
[334683802,1723469444237,-377.30891,0.00020821,2]
[334683803,1723469444247,-500.0,0.00020821,3]
[334683804,1723469444256,-377.30891,0.00020821,2]
[334683805,1723469444266,-377.30891,0.00020821,2]
[334683806,1723469444276,-500.0,0.00020821,3]
[334683807,1723469444286,-500.0,0.00020821,3]
[334683808,1723469444295,-991.56,0.00020821,3]
[334683809,1723469444304,-377.30891,0.00020821,2]
[334683810,1723469444314,-377.30891,0.00020821,2]
[334683811,1723469444325,-502.06461699,0.00020821,3]
[334683812,1723469444334,-377.30891,0.00020821,2]
[334683813,1723469444344,-500.0,0.00020821,3]
[334683814,1723469444353,-500.0,0.00020821,3]
[334683815,1723469444362,-518.52850845,0.00020821,3]
[334683816,1723469444371,-647.09165506,0.00020821,3]
[334683817,1723469444381,-500.0,0.00020821,3]
[334683818,1723469444392,-500.0,0.00020821,3]
[334683819,1723469444402,-500.0,0.00020821,3]
[334683820,1723469444411,-500.0,0.00020821,3]
[334683821,1723469444420,-503.16277501,0.00020821,3]
[334683822,1723469444430,-1364.52,0.00020821,3]
[334683823,1723469444439,-500.0,0.00020821,3]
[334683824,1723469444449,-876.13,0.00020821,3]
[334683825,1723469444458,-500.0,0.00020821,3]
[334683826,1723469444467,-500.0,0.00020821,3]
[334683827,1723469444477,-500.0,0.00020821,3]
[334683828,1723469444486,-500.0,0.00020821,3]
[334683829,1723469444495,-500.0,0.00020821,3]
[334683830,1723469444505,-500.0,0.00020821,3]
[334683831,1723469444514,-505.0683132,0.00020821,3]
[334683832,1723469444526,-500.0,0.00020821,3]
[334683833,1723469444536,-500.0,0.00020821,3]
[334683834,1723469444546,-505.38117355,0.00020821,3]
[334683835,1723469444555,-500.0,0.00020821,3]
[334683836,1723469444565,-500.0,0.00020821,3]
[334683837,1723469444575,-431.89999871,0.00020821,3]
[334683838,1723469444584,-508.83425662,0.00020821,3]
[334683839,1723469444593,-552.98054679,0.00020821,3]
[334683840,1723469444603,-500.0,0.00020821,3]
[334683841,1723469444612,-500.0,0.00020821,3]
[334683842,1723469444621,-679.91,0.00020821,3]
[334683843,1723469444631,-500.0,0.00020821,3]
[334683844,1723469444642,-500.0,0.00020821,3]
[334683845,1723469444652,-500.0,0.00020821,3]
[334683846,1723469444661,-500.0,0.00020821,3]
[334683847,1723469444670,-500.0,0.00020821,3]
[334683848,1723469444680,-1002.93,0.00020821,3]
[334683849,1723469444689,-502.07461869,0.00020821,3]
[334683850,1723469444698,-762.2,0.00020821,3]
[334683851,1723469444708,-500.0,0.00020821,3]
[334683852,1723469444717,-1147.29,0.00020821,3]
[334683853,1723469444726,-500.0,0.00020821,3]
[334683854,1723469444735,-500.0,0.00020821,3]
[334683855,1723469444745,-500.0,0.00020821,3]
[334683856,1723469444754,-500.0,0.00020821,3]
[334683857,1723469444764,-500.0,0.00020821,3]
[334683858,1723469444774,-205.116128,0.00020821,2]
[334683859,1723469444783,-205.116128,0.00020821,2]
[334683860,1723469444793,-205.116128,0.00020821,2]
[334683861,1723469444802,-205.116128,0.00020821,2]
[334683862,1723469444812,-151.72358,0.00020821,2]
[334683863,1723469444822,-205.116128,0.00020821,2]
[334683864,1723469444831,-205.116128,0.00020821,2]
[334683865,1723469444841,-500.0,0.00020821,3]
[334683866,1723469444851,-205.116128,0.00020821,2]
[334683867,1723469444860,-205.116128,0.00020821,2]
[334683868,1723469444870,-151.0,0.00020821,2]
[334683869,1723469444881,-631.6,0.00020821,3]
[334683870,1723469444895,-500.0,0.00020821,3]
[334683871,1723469444905,-500.0,0.00020821,3]
[334683872,1723469444914,-1557.04,0.00020821,3]
[334683873,1723469444924,-506.07076068,0.00020821,3]
[334683874,1723469444933,-509.00972088,0.00020821,3]
[334683875,1723469444943,-575.28,0.00020821,3]
[334683876,1723469444952,-875.31,0.00020821,3]
[334683877,1723469444964,-500.0,0.00020821,3]
[334683878,1723469444975,-500.0,0.00020821,3]
[334683879,1723469444986,-500.0,0.00020821,3]
[334683880,1723469444995,-500.0,0.00020821,3]
[334683881,1723469445005,-500.0,0.00020821,3]
[334683882,1723469445016,-609.93,0.00020821,3]
[334683883,1723469445027,-500.0,0.00020821,3]
[334683884,1723469445038,-500.0,0.00020821,3]
[334683885,1723469445048,-500.0,0.00020821,3]
[334683886,1723469445058,-500.0,0.00020821,3]
[334683887,1723469445067,-625.18,0.00020821,3]
[334683888,1723469445077,-500.0,0.00020821,3]
[334683889,1723469445087,-500.0,0.00020821,3]
[334683890,1723469445096,-297.51445606,0.00020821,3]
[334683891,1723469445106,-500.0,0.00020821,3]
[334683892,1723469445116,-500.0,0.00020821,3]
[334683893,1723469445126,-500.0,0.00020821,3]
[334683894,1723469445136,-791.62,0.00020821,3]
[334683895,1723469445149,-500.0,0.00020821,3]
[334683896,1723469445158,-500.0,0.00020821,3]
[334683897,1723469445167,-500.0,0.00020821,3]
[334683898,1723469445177,-500.0,0.00020821,3]
[334683899,1723469445187,-500.0,0.00020821,3]
[334683900,1723469445197,-634.92,0.00020821,3]
[334683901,1723469445207,-500.0,0.00020821,3]
[334683902,1723469445217,-606.89,0.00020821,3]
[334683903,1723469445226,-500.0,0.00020821,3]
[334683904,1723469445235,-506.35734936,0.00020821,3]
[334683905,1723469445245,-500.0,0.00020821,3]
[334683906,1723469445255,-500.0,0.00020821,3]
[334683907,1723469445265,-200.67872286,0.00020821,3]
[334683908,1723469445275,-500.0,0.00020821,3]
[334683909,1723469445285,-500.0,0.00020821,3]
[334683910,1723469445295,-829.85,0.00020821,3]
[334683911,1723469445304,-500.0,0.00020821,3]
[334683912,1723469445314,-2119.11,0.00020821,3]
[334683913,1723469445323,-597.81,0.00020821,3]
[334683914,1723469445333,-500.0,0.00020821,3]
[334683915,1723469445342,-500.0,0.00020821,3]
[334683916,1723469445352,-500.80828887,0.00020821,3]
[334683917,1723469445362,-1424.09,0.00020821,3]
[334683918,1723469445371,-500.0,0.00020821,3]
[334683919,1723469445381,-502.03387557,0.00020821,3]